[Event "Titled Tuesday Blitz September 27 Early 2022"]
[White "D`Arruda, Ricardo D."]
[Black "Smietanska, Wiktoria"]
[WhiteFideId "100692"]
[BlackFideId "21869359"]
[WhiteElo "2456"]
[BlackElo "1847"]
[Result "1/2-1/2"]
[Round "10"]
[TimeControl "180+1"]
[Date "2022.09.27"]
[WhiteClock "0:01:05"]
[BlackClock "0:01:08"]

1. d4 {[%clk 0:02:13]}  Nf6 {[%clk 0:02:57]} 2. Nf3 {[%clk 0:02:14]}  g6 {[%clk 0:02:57]} 3. Nc3 {[%clk 0:02:14]}  d5 {[%clk 0:02:56]} 4. Bg5 {[%clk 0:02:12]}  Bg7 {[%clk 0:02:55]} 5. Bxf6 {[%clk 0:02:12]}  Bxf6 {[%clk 0:02:55]} 6. e4 {[%clk 0:02:12]}  dxe4 {[%clk 0:02:55]} 7. Nxe4 {[%clk 0:02:13]}  Bg7 {[%clk 0:02:54]} 8. Bc4 {[%clk 0:02:11]}  O-O {[%clk 0:02:53]} 9. O-O {[%clk 0:02:10]}  c6 {[%clk 0:02:50]} 10. c3 {[%clk 0:02:06]}  Nd7 {[%clk 0:02:49]} 11. Qe2 {[%clk 0:02:05]}  Nf6 {[%clk 0:02:49]} 12. Nxf6+ {[%clk 0:02:04]}  Bxf6 {[%clk 0:02:50]} 13. Rfe1 {[%clk 0:02:04]}  b5 {[%clk 0:02:46]} 14. Bb3 {[%clk 0:02:03]}  a5 {[%clk 0:02:41]} 15. a4 {[%clk 0:02:02]}  Ba6 {[%clk 0:02:40]} 16. axb5 {[%clk 0:01:52]}  cxb5 {[%clk 0:02:37]} 17. Rad1 {[%clk 0:01:50]}  a4 {[%clk 0:02:35]} 18. Ba2 {[%clk 0:01:44]}  b4 {[%clk 0:02:34]} 19. Bc4 {[%clk 0:01:43]}  Bxc4 {[%clk 0:02:31]} 20. Qxc4 {[%clk 0:01:44]}  bxc3 {[%clk 0:02:29]} 21. bxc3 {[%clk 0:01:45]}  Qd7 {[%clk 0:02:26]} 22. Ra1 {[%clk 0:01:40]}  Ra7 {[%clk 0:02:11]} 23. Re2 {[%clk 0:01:38]}  Rfa8 {[%clk 0:02:02]} 24. Rea2 {[%clk 0:01:38]}  e6 {[%clk 0:01:52]} 25. g3 {[%clk 0:01:30]}  a3 {[%clk 0:01:47]} 26. Ne5 {[%clk 0:01:20]}  Bxe5 {[%clk 0:01:46]} 27. dxe5 {[%clk 0:01:20]}  Qb7 {[%clk 0:01:42]} 28. Qb4 {[%clk 0:01:17]}  Qxb4 {[%clk 0:01:38]} 29. cxb4 {[%clk 0:01:17]}  Ra4 {[%clk 0:01:36]} 30. b5 {[%clk 0:01:17]}  Rb8 {[%clk 0:01:25]} 31. Rxa3 {[%clk 0:01:12]}  Rxa3 {[%clk 0:01:22]} 32. Rxa3 {[%clk 0:01:13]}  Rxb5 {[%clk 0:01:23]} 33. f4 {[%clk 0:01:13]}  Kg7 {[%clk 0:01:22]} 34. Ra7 {[%clk 0:01:11]}  g5 {[%clk 0:01:19]} 35. Kg2 {[%clk 0:01:09]}  gxf4 {[%clk 0:01:16]} 36. gxf4 {[%clk 0:01:10]}  Rb2+ {[%clk 0:01:16]} 37. Kg3 {[%clk 0:01:10]}  Rb3+ {[%clk 0:01:16]} 38. Kg4 {[%clk 0:01:09]}  Rb2 {[%clk 0:01:15]} 39. h3 {[%clk 0:01:07]}  Rg2+ {[%clk 0:01:13]} 40. Kf3 {[%clk 0:01:07]}  Rh2 {[%clk 0:01:13]} 41. Kg3 {[%clk 0:01:07]}  Rh1 {[%clk 0:01:13]} 42. Rb7 {[%clk 0:01:06]}  Rg1+ {[%clk 0:01:13]} 43. Kf3 {[%clk 0:01:06]}  Rf1+ {[%clk 0:01:12]} 44. Kg3 {[%clk 0:01:05]}  Rg1+ {[%clk 0:01:08]} 45. Kf3 {[%clk 0:01:05]}  Rf1+ {[%clk 0:01:08]} 46. Kg3 {[%clk 0:01:05]}  Rg1+ {[%clk 0:01:08]} 1/2-1/2


[Site "https://www.chess.com"]

[Event "Titled Tuesday Blitz September 27 Early 2022"]
[White "De Souza, Cristiano Gomes"]
[Black "Alexikov, Alexander"]
[WhiteFideId "2151758"]
[BlackFideId "14103958"]
[WhiteElo "2068"]
[BlackElo "2222"]
[Result "1-0"]
[Round "10"]
[TimeControl "180+1"]
[Date "2022.09.27"]
[WhiteClock "0:00:26"]
[BlackClock "0:00:01"]

1. d4 {[%clk 0:03:00]}  Nf6 {[%clk 0:02:58]} 2. c4 {[%clk 0:03:00]}  g6 {[%clk 0:02:58]} 3. Nc3 {[%clk 0:03:00]}  Bg7 {[%clk 0:02:59]} 4. e4 {[%clk 0:03:00]}  d6 {[%clk 0:03:00]} 5. Nf3 {[%clk 0:02:59]}  O-O {[%clk 0:02:59]} 6. Be2 {[%clk 0:02:59]}  e5 {[%clk 0:02:59]} 7. O-O {[%clk 0:03:00]}  Na6 {[%clk 0:02:59]} 8. Be3 {[%clk 0:02:59]}  Ng4 {[%clk 0:02:58]} 9. Bg5 {[%clk 0:02:59]}  f6 {[%clk 0:02:53]} 10. Bh4 {[%clk 0:02:57]}  Kh8 {[%clk 0:02:46]} 11. h3 {[%clk 0:02:52]}  Nh6 {[%clk 0:02:45]} 12. d5 {[%clk 0:02:52]}  c5 {[%clk 0:02:34]} 13. dxc6 {[%clk 0:02:50]}  bxc6 {[%clk 0:02:33]} 14. a3 {[%clk 0:02:49]}  Nc5 {[%clk 0:02:29]} 15. b4 {[%clk 0:02:46]}  Ne6 {[%clk 0:02:29]} 16. Qa4 {[%clk 0:02:32]}  c5 {[%clk 0:02:17]} 17. Nd5 {[%clk 0:02:27]}  Bb7 {[%clk 0:01:56]} 18. Rad1 {[%clk 0:02:25]}  Nd4 {[%clk 0:01:50]} 19. Nxd4 {[%clk 0:02:24]}  cxd4 {[%clk 0:01:48]} 20. f3 {[%clk 0:02:21]}  a5 {[%clk 0:01:39]} 21. Qb3 {[%clk 0:02:17]}  axb4 {[%clk 0:01:36]} 22. axb4 {[%clk 0:02:17]}  Nf7 {[%clk 0:01:24]} 23. Ra1 {[%clk 0:02:14]}  Bxd5 {[%clk 0:01:21]} 24. exd5 {[%clk 0:02:01]}  Qb6 {[%clk 0:01:19]} 25. Bf2 {[%clk 0:01:54]}  Bh6 {[%clk 0:01:15]} 26. Rfb1 {[%clk 0:01:38]}  Rfb8 {[%clk 0:01:04]} 27. Rxa8 {[%clk 0:01:26]}  Rxa8 {[%clk 0:01:02]} 28. Qc2 {[%clk 0:01:26]}  Rc8 {[%clk 0:00:53]} 29. Bd3 {[%clk 0:01:25]}  Kg7 {[%clk 0:00:51]} 30. g3 {[%clk 0:01:22]}  f5 {[%clk 0:00:33]} 31. f4 {[%clk 0:01:04]}  Kg8 {[%clk 0:00:16]} 32. fxe5 {[%clk 0:00:50]}  Nxe5 {[%clk 0:00:15]} 33. Qe2 {[%clk 0:00:47]}  Be3 {[%clk 0:00:12]} 34. Bxe3 {[%clk 0:00:37]}  dxe3 {[%clk 0:00:11]} 35. Kg2 {[%clk 0:00:34]}  Qd4 {[%clk 0:00:11]} 36. Rd1 {[%clk 0:00:29]}  Nxd3 {[%clk 0:00:03]} 37. Rxd3 {[%clk 0:00:27]}  Qe4+ {[%clk 0:00:02]} 38. Kh2 {[%clk 0:00:26]}  Rxc4 {[%clk 0:00:01]} 39. Rxe3 {[%clk 0:00:26]} 1-0


[Site "https://www.chess.com"]

[Event "Titled Tuesday Blitz September 27 Early 2022"]
[White "Derjabin, Ilja"]
[Black "Jakubowski, Krzysztof"]
[WhiteFideId "14104768"]
[BlackFideId "1112848"]
[WhiteElo "2341"]
[BlackElo "2306"]
[Result "1/2-1/2"]
[Round "10"]
[TimeControl "180+1"]
[Date "2022.09.27"]
[WhiteClock "0:00:32"]
[BlackClock "0:00:53"]

1. d4 {[%clk 0:03:00]}  d5 {[%clk 0:02:58]} 2. c4 {[%clk 0:02:59]}  c6 {[%clk 0:02:58]} 3. Nc3 {[%clk 0:02:58]}  Nf6 {[%clk 0:02:57]} 4. Nf3 {[%clk 0:02:57]}  e6 {[%clk 0:02:55]} 5. e3 {[%clk 0:02:53]}  Nbd7 {[%clk 0:02:54]} 6. Bd3 {[%clk 0:02:50]}  dxc4 {[%clk 0:02:53]} 7. Bxc4 {[%clk 0:02:49]}  b5 {[%clk 0:02:53]} 8. Bd3 {[%clk 0:02:48]}  Bd6 {[%clk 0:02:52]} 9. O-O {[%clk 0:02:47]}  O-O {[%clk 0:02:50]} 10. e4 {[%clk 0:02:45]}  e5 {[%clk 0:02:50]} 11. Bg5 {[%clk 0:02:45]}  Bb7 {[%clk 0:02:44]} 12. Rc1 {[%clk 0:02:41]}  a6 {[%clk 0:02:41]} 13. Ne2 {[%clk 0:02:27]}  h6 {[%clk 0:02:38]} 14. Bh4 {[%clk 0:02:27]}  Re8 {[%clk 0:02:32]} 15. Ng3 {[%clk 0:02:20]}  g5 {[%clk 0:02:20]} 16. Nxg5 {[%clk 0:02:10]}  hxg5 {[%clk 0:02:19]} 17. Bxg5 {[%clk 0:02:11]}  Qb6 {[%clk 0:02:13]} 18. Nf5 {[%clk 0:02:09]}  Bf8 {[%clk 0:02:12]} 19. Qf3 {[%clk 0:02:00]}  Nh7 {[%clk 0:02:03]} 20. Bh6 {[%clk 0:01:55]}  Re6 {[%clk 0:01:59]} 21. Bxf8 {[%clk 0:01:47]}  Ndxf8 {[%clk 0:01:25]} 22. dxe5 {[%clk 0:01:38]}  Rae8 {[%clk 0:01:22]} 23. Nd6 {[%clk 0:01:27]}  R8e7 {[%clk 0:01:21]} 24. Nf5 {[%clk 0:01:16]}  Rd7 {[%clk 0:01:20]} 25. Rfd1 {[%clk 0:01:09]}  Ng5 {[%clk 0:01:13]} 26. Qh5 {[%clk 0:01:03]}  Rg6 {[%clk 0:01:06]} 27. Nh6+ {[%clk 0:00:53]}  Kg7 {[%clk 0:00:59]} 28. Nf5+ {[%clk 0:00:51]}  Kg8 {[%clk 0:00:59]} 29. Nh6+ {[%clk 0:00:51]}  Kg7 {[%clk 0:00:53]} 30. Nf5+ {[%clk 0:00:32]}  Kg8 {[%clk 0:00:53]} 1/2-1/2


[Site "https://www.chess.com"]

[Event "Titled Tuesday Blitz September 27 Early 2022"]
[White "Ernst, Sipke"]
[Black "Ferreira, Vitor Hugo Vieira"]
[WhiteFideId "1004689"]
[BlackFideId "2119765"]
[WhiteElo "2436"]
[BlackElo "2168"]
[Result "1-0"]
[Round "10"]
[TimeControl "180+1"]
[Date "2022.09.27"]
[WhiteClock "0:00:10"]
[BlackClock "0:00:01"]

1. d4 {[%clk 0:03:00]}  d5 {[%clk 0:02:59]} 2. c4 {[%clk 0:02:58]}  c6 {[%clk 0:03:00]} 3. Nf3 {[%clk 0:02:58]}  Nf6 {[%clk 0:03:00]} 4. Nc3 {[%clk 0:02:58]}  e6 {[%clk 0:03:01]} 5. g3 {[%clk 0:02:59]}  Be7 {[%clk 0:02:55]} 6. Bg2 {[%clk 0:02:57]}  O-O {[%clk 0:02:55]} 7. O-O {[%clk 0:02:57]}  dxc4 {[%clk 0:02:55]} 8. Ne5 {[%clk 0:02:55]}  c5 {[%clk 0:02:42]} 9. dxc5 {[%clk 0:02:54]}  Qc7 {[%clk 0:02:42]} 10. Nxc4 {[%clk 0:02:52]}  Rd8 {[%clk 0:02:41]} 11. Qb3 {[%clk 0:02:51]}  Bxc5 {[%clk 0:02:29]} 12. Bf4 {[%clk 0:02:48]}  Qe7 {[%clk 0:02:24]} 13. Bg5 {[%clk 0:02:43]}  Nc6 {[%clk 0:02:20]} 14. e3 {[%clk 0:02:43]}  h6 {[%clk 0:02:17]} 15. Bxf6 {[%clk 0:02:42]}  Qxf6 {[%clk 0:02:17]} 16. Ne4 {[%clk 0:02:43]}  Qe7 {[%clk 0:02:16]} 17. Rfd1 {[%clk 0:02:38]}  Rxd1+ {[%clk 0:01:54]} 18. Rxd1 {[%clk 0:02:37]}  Rb8 {[%clk 0:01:54]} 19. Nxc5 {[%clk 0:02:29]}  Qxc5 {[%clk 0:01:53]} 20. Bxc6 {[%clk 0:02:30]}  Qxc6 {[%clk 0:01:49]} 21. Rd8+ {[%clk 0:02:30]}  Kh7 {[%clk 0:01:49]} 22. Qd3+ {[%clk 0:02:31]}  f5 {[%clk 0:01:45]} 23. Qd6 {[%clk 0:02:11]}  Qxc4 {[%clk 0:01:33]} 24. Qxb8 {[%clk 0:02:10]}  Bd7 {[%clk 0:01:18]} 25. Rxd7 {[%clk 0:01:11]}  Qc1+ {[%clk 0:01:17]} 26. Kg2 {[%clk 0:01:11]}  Qc6+ {[%clk 0:01:17]} 27. Kf1 {[%clk 0:01:11]}  Qxd7 {[%clk 0:01:16]} 28. Qxa7 {[%clk 0:01:11]}  Qd5 {[%clk 0:01:13]} 29. Qb6 {[%clk 0:01:00]}  Qd1+ {[%clk 0:00:52]} 30. Kg2 {[%clk 0:01:00]}  Qd5+ {[%clk 0:00:52]} 31. Kh3 {[%clk 0:00:47]}  Qf3 {[%clk 0:00:51]} 32. Qxe6 {[%clk 0:00:42]}  Qxf2 {[%clk 0:00:45]} 33. Qd5 {[%clk 0:00:34]}  Qf1+ {[%clk 0:00:39]} 34. Qg2 {[%clk 0:00:32]}  Qc4 {[%clk 0:00:38]} 35. Qf3 {[%clk 0:00:30]}  Kg6 {[%clk 0:00:27]} 36. g4 {[%clk 0:00:28]}  Kh7 {[%clk 0:00:08]} 37. Qxf5+ {[%clk 0:00:28]}  Kh8 {[%clk 0:00:08]} 38. b3 {[%clk 0:00:25]}  Qc3 {[%clk 0:00:08]} 39. Qf8+ {[%clk 0:00:24]}  Kh7 {[%clk 0:00:08]} 40. Qf5+ {[%clk 0:00:24]}  Kh8 {[%clk 0:00:09]} 41. Qe4 {[%clk 0:00:24]}  b5 {[%clk 0:00:08]} 42. a4 {[%clk 0:00:21]}  b4 {[%clk 0:00:06]} 43. Qe8+ {[%clk 0:00:20]}  Kh7 {[%clk 0:00:06]} 44. Qe6 {[%clk 0:00:20]}  Qe1 {[%clk 0:00:03]} 45. Qe4+ {[%clk 0:00:19]}  Kh8 {[%clk 0:00:03]} 46. Qf3 {[%clk 0:00:19]}  Qc3 {[%clk 0:00:02]} 47. Qf8+ {[%clk 0:00:18]}  Kh7 {[%clk 0:00:03]} 48. Qf5+ {[%clk 0:00:18]}  Kh8 {[%clk 0:00:03]} 49. Qe6 {[%clk 0:00:18]}  Qe1 {[%clk 0:00:02]} 50. Qe4 {[%clk 0:00:16]}  Qc3 {[%clk 0:00:02]} 51. Qa8+ {[%clk 0:00:15]}  Kh7 {[%clk 0:00:02]} 52. Qd5 {[%clk 0:00:11]}  Qxe3+ {[%clk 0:00:02]} 53. Kg2 {[%clk 0:00:12]}  Qe2+ {[%clk 0:00:02]} 54. Kg3 {[%clk 0:00:13]}  Qe1+ {[%clk 0:00:02]} 55. Kf4 {[%clk 0:00:12]}  Qf2+ {[%clk 0:00:02]} 56. Ke4 {[%clk 0:00:12]}  Qg2+ {[%clk 0:00:01]} 57. Kd4 {[%clk 0:00:11]}  Qd2+ {[%clk 0:00:01]} 58. Kc5 {[%clk 0:00:11]}  Qc3+ {[%clk 0:00:01]} 59. Kb5 {[%clk 0:00:10]}  Qh3 {[%clk 0:00:01]} 60. Qe4+ {[%clk 0:00:09]}  Kh8 {[%clk 0:00:01]} 61. a5 {[%clk 0:00:10]} 1-0


[Site "https://www.chess.com"]

[Event "Titled Tuesday Blitz September 27 Early 2022"]
[White "Fawzy, Adham"]
[Black "Dahale, Atul"]
[WhiteFideId "10613129"]
[BlackFideId "5037794"]
[WhiteElo "2541"]
[BlackElo "2017"]
[Result "1-0"]
[Round "10"]
[TimeControl "180+1"]
[Date "2022.09.27"]
[WhiteClock "0:02:36"]
[BlackClock "0:02:12"]

1. e4 {[%clk 0:03:00]}  d6 {[%clk 0:02:58]} 2. Nf3 {[%clk 0:02:59]}  g6 {[%clk 0:02:56]} 3. d4 {[%clk 0:02:59]}  Bg7 {[%clk 0:02:34]} 4. Bc4 {[%clk 0:02:57]}  Nf6 {[%clk 0:02:25]} 5. Nc3 {[%clk 0:02:54]}  O-O {[%clk 0:02:25]} 6. O-O {[%clk 0:02:54]}  Nxe4 {[%clk 0:02:21]} 7. Nxe4 {[%clk 0:02:50]}  d5 {[%clk 0:02:22]} 8. Bd3 {[%clk 0:02:51]}  dxe4 {[%clk 0:02:22]} 9. Bxe4 {[%clk 0:02:52]}  c6 {[%clk 0:02:22]} 10. h3 {[%clk 0:02:50]}  Nd7 {[%clk 0:02:22]} 11. c3 {[%clk 0:02:48]}  Nf6 {[%clk 0:02:22]} 12. Bc2 {[%clk 0:02:47]}  b5 {[%clk 0:02:20]} 13. Bg5 {[%clk 0:02:45]}  Be6 {[%clk 0:02:18]} 14. Qd2 {[%clk 0:02:42]}  Qc7 {[%clk 0:02:14]} 15. Bf4 {[%clk 0:02:40]}  Qb7 {[%clk 0:02:12]} 16. Ne5 {[%clk 0:02:36]} 1-0


[Site "https://www.chess.com"]

[Event "Titled Tuesday Blitz September 27 Early 2022"]
[White "Fernandez De La Vara, Arnaldo"]
[Black "Rostovtsev, Dmitry"]
[WhiteFideId "3518388"]
[BlackFideId "34278320"]
[WhiteElo "2387"]
[BlackElo "2313"]
[Result "1/2-1/2"]
[Round "10"]
[TimeControl "180+1"]
[Date "2022.09.27"]
[WhiteClock "0:00:09"]
[BlackClock "0:00:31"]

1. Nf3 {[%clk 0:03:00]}  Nf6 {[%clk 0:02:50]} 2. g3 {[%clk 0:03:00]}  e6 {[%clk 0:02:50]} 3. Bg2 {[%clk 0:03:00]}  d5 {[%clk 0:02:51]} 4. O-O {[%clk 0:03:00]}  Be7 {[%clk 0:02:49]} 5. d4 {[%clk 0:03:01]}  O-O {[%clk 0:02:47]} 6. c4 {[%clk 0:03:01]}  dxc4 {[%clk 0:02:47]} 7. Qc2 {[%clk 0:03:02]}  b5 {[%clk 0:02:45]} 8. a4 {[%clk 0:03:02]}  Bb7 {[%clk 0:02:44]} 9. axb5 {[%clk 0:03:00]}  a6 {[%clk 0:02:44]} 10. bxa6 {[%clk 0:02:49]}  Nxa6 {[%clk 0:02:45]} 11. Bd2 {[%clk 0:02:20]}  Nb4 {[%clk 0:02:32]} 12. Rxa8 {[%clk 0:02:21]}  Nxc2 {[%clk 0:02:32]} 13. Rxd8 {[%clk 0:02:21]}  Rxd8 {[%clk 0:02:32]} 14. Rc1 {[%clk 0:02:03]}  Nxd4 {[%clk 0:02:29]} 15. Nxd4 {[%clk 0:02:01]}  Bxg2 {[%clk 0:02:30]} 16. Nxe6 {[%clk 0:01:59]}  fxe6 {[%clk 0:02:06]} 17. Kxg2 {[%clk 0:01:57]}  Ne4 {[%clk 0:02:07]} 18. Bf4 {[%clk 0:01:49]}  Rf8 {[%clk 0:01:54]} 19. Rxc4 {[%clk 0:01:47]}  Nxf2 {[%clk 0:01:54]} 20. Kxf2 {[%clk 0:00:57]}  e5 {[%clk 0:01:54]} 21. Rxc7 {[%clk 0:00:56]}  Bd8 {[%clk 0:01:46]} 22. Rc4 {[%clk 0:00:56]}  exf4 {[%clk 0:01:45]} 23. Rxf4 {[%clk 0:00:56]}  Bf6 {[%clk 0:01:40]} 24. b3 {[%clk 0:00:39]}  Rb8 {[%clk 0:01:35]} 25. Nd2 {[%clk 0:00:38]}  Bc3 {[%clk 0:01:33]} 26. Ne4 {[%clk 0:00:37]}  Rxb3 {[%clk 0:01:33]} 27. Nxc3 {[%clk 0:00:33]}  Rxc3 {[%clk 0:01:33]} 28. h4 {[%clk 0:00:29]}  h5 {[%clk 0:01:32]} 29. e4 {[%clk 0:00:28]}  Rc2+ {[%clk 0:01:30]} 30. Kf3 {[%clk 0:00:22]}  Rc3+ {[%clk 0:01:30]} 31. Kf2 {[%clk 0:00:12]}  Rc2+ {[%clk 0:01:30]} 32. Ke3 {[%clk 0:00:13]}  Rc3+ {[%clk 0:01:30]} 33. Kd4 {[%clk 0:00:14]}  Rxg3 {[%clk 0:01:30]} 34. e5 {[%clk 0:00:14]}  Rg4 {[%clk 0:00:33]} 35. Rxg4 {[%clk 0:00:14]}  hxg4 {[%clk 0:00:34]} 36. Ke4 {[%clk 0:00:15]}  Kf7 {[%clk 0:00:35]} 37. Kf4 {[%clk 0:00:16]}  Ke6 {[%clk 0:00:35]} 38. Kxg4 {[%clk 0:00:16]}  Kxe5 {[%clk 0:00:35]} 39. Kg5 {[%clk 0:00:17]}  Ke4 {[%clk 0:00:35]} 40. Kg4 {[%clk 0:00:11]}  Ke5 {[%clk 0:00:35]} 41. Kg5 {[%clk 0:00:11]}  Ke4 {[%clk 0:00:35]} 42. h5 {[%clk 0:00:10]}  Kf3 {[%clk 0:00:34]} 43. Kf5 {[%clk 0:00:08]}  Kg3 {[%clk 0:00:34]} 44. Kg5 {[%clk 0:00:09]}  Kh3 {[%clk 0:00:32]} 45. Kg6 {[%clk 0:00:09]}  Kh4 {[%clk 0:00:32]} 46. Kxg7 {[%clk 0:00:09]}  Kxh5 {[%clk 0:00:31]} 1/2-1/2


[Site "https://www.chess.com"]

[Event "Titled Tuesday Blitz September 27 Early 2022"]
[White "Gu, Xiaobing"]
[Black "Srihari L R"]
[WhiteFideId "8602611"]
[BlackFideId "46617116"]
[WhiteElo "2174"]
[BlackElo "2208"]
[Result "1/2-1/2"]
[Round "10"]
[TimeControl "180+1"]
[Date "2022.09.27"]
[WhiteClock "0:00:07"]
[BlackClock "0:00:31"]

1. e4 {[%clk 0:02:56]}  g6 {[%clk 0:02:54]} 2. d4 {[%clk 0:02:52]}  Bg7 {[%clk 0:02:54]} 3. Nc3 {[%clk 0:02:52]}  d6 {[%clk 0:02:54]} 4. Be3 {[%clk 0:02:50]}  a6 {[%clk 0:02:53]} 5. Qd2 {[%clk 0:02:48]}  b5 {[%clk 0:02:50]} 6. a3 {[%clk 0:02:47]}  Bb7 {[%clk 0:02:49]} 7. Nf3 {[%clk 0:02:43]}  Nd7 {[%clk 0:02:49]} 8. Be2 {[%clk 0:02:41]}  Rc8 {[%clk 0:02:48]} 9. O-O {[%clk 0:02:40]}  c5 {[%clk 0:02:49]} 10. Rad1 {[%clk 0:02:28]}  cxd4 {[%clk 0:02:46]} 11. Nxd4 {[%clk 0:02:16]}  Ngf6 {[%clk 0:02:39]} 12. Bh6 {[%clk 0:02:06]}  O-O {[%clk 0:02:37]} 13. Bxg7 {[%clk 0:02:05]}  Kxg7 {[%clk 0:02:38]} 14. Qe3 {[%clk 0:01:55]}  Kg8 {[%clk 0:02:36]} 15. f4 {[%clk 0:01:55]}  Rxc3 {[%clk 0:02:35]} 16. Qxc3 {[%clk 0:01:49]}  Nxe4 {[%clk 0:02:34]} 17. Qe3 {[%clk 0:01:41]}  Qb6 {[%clk 0:02:33]} 18. Bf3 {[%clk 0:01:22]}  f5 {[%clk 0:02:01]} 19. Rfe1 {[%clk 0:01:17]}  Rc8 {[%clk 0:01:52]} 20. Qb3+ {[%clk 0:01:13]}  Kf8 {[%clk 0:01:33]} 21. Kf1 {[%clk 0:00:49]}  e5 {[%clk 0:01:15]} 22. Bxe4 {[%clk 0:00:48]}  Bxe4 {[%clk 0:01:13]} 23. Qe6 {[%clk 0:00:47]}  exd4 {[%clk 0:01:03]} 24. Qxd7 {[%clk 0:00:47]}  Rxc2 {[%clk 0:01:02]} 25. Qe6 {[%clk 0:00:10]}  Bxg2+ {[%clk 0:01:01]} 26. Kg1 {[%clk 0:00:08]}  d3+ {[%clk 0:01:00]} 27. Re3 {[%clk 0:00:08]}  Be4 {[%clk 0:00:57]} 28. Rxd3 {[%clk 0:00:07]}  Bxd3 {[%clk 0:00:41]} 29. Qe8+ {[%clk 0:00:05]}  Kg7 {[%clk 0:00:41]} 30. Qe7+ {[%clk 0:00:05]}  Kh6 {[%clk 0:00:41]} 31. Qg5+ {[%clk 0:00:06]}  Kg7 {[%clk 0:00:40]} 32. Qe7+ {[%clk 0:00:06]}  Kg8 {[%clk 0:00:40]} 33. Qe8+ {[%clk 0:00:07]}  Kg7 {[%clk 0:00:31]} 34. Qe7+ {[%clk 0:00:07]} 1/2-1/2


[Site "https://www.chess.com"]

[Event "Titled Tuesday Blitz September 27 Early 2022"]
[White "Guliev, Logman"]
[Black "Averjanov, Alexey"]
[WhiteFideId "13400061"]
[BlackFideId "14109867"]
[WhiteElo "2128"]
[BlackElo "2643"]
[Result "0-1"]
[Round "10"]
[TimeControl "180+1"]
[Date "2022.09.27"]
[WhiteClock "0:01:27"]
[BlackClock "0:02:03"]

1. e4 {[%clk 0:03:00]}  c6 {[%clk 0:03:00]} 2. d4 {[%clk 0:03:00]}  d5 {[%clk 0:02:59]} 3. exd5 {[%clk 0:03:00]}  cxd5 {[%clk 0:03:00]} 4. c4 {[%clk 0:02:59]}  Nf6 {[%clk 0:03:00]} 5. Nc3 {[%clk 0:02:59]}  e6 {[%clk 0:03:00]} 6. Nf3 {[%clk 0:02:58]}  Be7 {[%clk 0:03:00]} 7. Bg5 {[%clk 0:02:58]}  O-O {[%clk 0:03:00]} 8. Bd3 {[%clk 0:02:57]}  dxc4 {[%clk 0:02:56]} 9. Bxc4 {[%clk 0:02:56]}  a6 {[%clk 0:02:56]} 10. O-O {[%clk 0:02:55]}  b5 {[%clk 0:02:56]} 11. Bd3 {[%clk 0:02:55]}  Bb7 {[%clk 0:02:56]} 12. Rc1 {[%clk 0:02:55]}  Nc6 {[%clk 0:02:57]} 13. Bb1 {[%clk 0:02:54]}  Nd5 {[%clk 0:02:56]} 14. Bxe7 {[%clk 0:02:53]}  Ncxe7 {[%clk 0:02:57]} 15. Ne5 {[%clk 0:02:52]}  Ng6 {[%clk 0:02:54]} 16. Qg4 {[%clk 0:02:44]}  Rc8 {[%clk 0:02:48]} 17. Bxg6 {[%clk 0:02:37]}  hxg6 {[%clk 0:02:46]} 18. Ne4 {[%clk 0:02:38]}  Rxc1 {[%clk 0:02:42]} 19. Rxc1 {[%clk 0:02:36]}  f5 {[%clk 0:02:17]} 20. Qxg6 {[%clk 0:01:58]}  Nf4 {[%clk 0:02:16]} 21. Qg5 {[%clk 0:01:38]}  Qxg5 {[%clk 0:02:08]} 22. Nxg5 {[%clk 0:01:37]}  Ne2+ {[%clk 0:02:08]} 23. Kf1 {[%clk 0:01:36]}  Nxc1 {[%clk 0:02:09]} 24. Nxe6 {[%clk 0:01:35]}  Rc8 {[%clk 0:02:07]} 25. Nc5 {[%clk 0:01:32]}  Bd5 {[%clk 0:02:05]} 26. b3 {[%clk 0:01:31]}  Nxa2 {[%clk 0:02:05]} 27. f3 {[%clk 0:01:27]}  a5 {[%clk 0:02:03]} 0-1


[Site "https://www.chess.com"]

[Event "Titled Tuesday Blitz September 27 Early 2022"]
[White "Haitin, Ilja"]
[Black "Manukian, Artak"]
[WhiteFideId "4501764"]
[BlackFideId "13301373"]
[WhiteElo "2243"]
[BlackElo "2503"]
[Result "0-1"]
[Round "10"]
[TimeControl "180+1"]
[Date "2022.09.27"]
[WhiteClock "0:00:01"]
[BlackClock "0:01:55"]

1. e4 {[%clk 0:02:59]}  c6 {[%clk 0:02:59]} 2. d4 {[%clk 0:02:54]}  d5 {[%clk 0:03:00]} 3. exd5 {[%clk 0:02:55]}  cxd5 {[%clk 0:03:01]} 4. Bd3 {[%clk 0:02:55]}  Nc6 {[%clk 0:03:01]} 5. c3 {[%clk 0:02:55]}  e5 {[%clk 0:03:01]} 6. dxe5 {[%clk 0:02:51]}  Nxe5 {[%clk 0:03:02]} 7. Nf3 {[%clk 0:02:44]}  Nxd3+ {[%clk 0:03:01]} 8. Qxd3 {[%clk 0:02:45]}  Be7 {[%clk 0:03:00]} 9. O-O {[%clk 0:02:44]}  Nf6 {[%clk 0:03:00]} 10. h3 {[%clk 0:02:41]}  O-O {[%clk 0:03:00]} 11. Bg5 {[%clk 0:02:40]}  h6 {[%clk 0:02:54]} 12. Bxf6 {[%clk 0:02:35]}  Bxf6 {[%clk 0:02:55]} 13. Nbd2 {[%clk 0:02:35]}  Qb6 {[%clk 0:02:49]} 14. Nb3 {[%clk 0:02:31]}  Rd8 {[%clk 0:02:48]} 15. Rad1 {[%clk 0:02:27]}  a5 {[%clk 0:02:46]} 16. Rd2 {[%clk 0:02:25]}  a4 {[%clk 0:02:46]} 17. Nbd4 {[%clk 0:02:25]}  a3 {[%clk 0:02:47]} 18. b3 {[%clk 0:02:18]}  Qc5 {[%clk 0:02:45]} 19. Re1 {[%clk 0:02:12]}  b6 {[%clk 0:02:41]} 20. b4 {[%clk 0:01:58]}  Qc4 {[%clk 0:02:39]} 21. Qxc4 {[%clk 0:01:56]}  dxc4 {[%clk 0:02:40]} 22. Nc6 {[%clk 0:01:36]}  Rxd2 {[%clk 0:02:36]} 23. Nxd2 {[%clk 0:01:37]}  Bb7 {[%clk 0:02:22]} 24. Ne5 {[%clk 0:01:19]}  b5 {[%clk 0:02:18]} 25. f4 {[%clk 0:01:12]}  g5 {[%clk 0:02:12]} 26. g3 {[%clk 0:01:05]}  gxf4 {[%clk 0:02:07]} 27. gxf4 {[%clk 0:01:06]}  Rd8 {[%clk 0:02:06]} 28. Ne4 {[%clk 0:00:44]}  Bxe4 {[%clk 0:02:01]} 29. Rxe4 {[%clk 0:00:45]}  Rd2 {[%clk 0:02:01]} 30. Ng4 {[%clk 0:00:10]}  Kg7 {[%clk 0:01:57]} 31. Re8 {[%clk 0:00:01]}  Rxa2 {[%clk 0:01:55]} 0-1


[Site "https://www.chess.com"]